bitfinex-derivatives/quotes_ETHF0:USTF0_20250430
["timestamp","ask_amount","ask_price","bid_price","bid_amount"]
[1746029170733,5.4745,1765.8,1765.7,2.73553]
[1746029170935,3.828,1765.8,1765.7,2.73553]
[1746029171331,2.6627,1765.8,1765.7,2.73553]
[1746029171731,2.6627,1765.8,1765.7,43.53553]
[1746029175633,1.45244,1765.8,1765.7,43.53553]
[1746029175835,0.16139,1765.8,1765.7,43.53553]
[1746029176136,3.725,1765.9,1765.8,1.13257]
[1746029176334,3.725,1765.9,1765.8,5.99827]
[1746029176734,3.725,1765.9,1765.8,46.79827]
[1746029178035,3.725,1765.9,1765.8,43.59047]
[1746029178236,7.553,1765.9,1765.8,43.59047]
[1746029178441,9.1764,1765.9,1765.8,46.79827]
[1746029179440,9.1764,1765.9,1765.8,41.93257]
[1746029179645,10.0429,1765.9,1765.8,41.93257]
[1746029179847,11.17541,1765.9,1765.8,41.93257]
[1746029180143,10.0429,1765.9,1765.8,41.93257]
[1746029180848,11.17541,1765.9,1765.8,1.13257]
[1746029181639,10.0429,1765.9,1765.8,1.13257]
[1746029182847,11.17541,1765.9,1765.8,1.13257]
[1746029183549,10.0429,1765.9,1765.8,1.13257]
[1746029184541,11.17541,1765.9,1765.8,1.13257]
[1746029185248,10.0429,1765.9,1765.8,1.13257]
[1746029185456,11.17541,1765.9,1765.8,1.13257]
[1746029185638,6.3179,1765.9,1765.8,1.13257]
[1746029185844,3.726,1766.6,1766.5,1.13212]
[1746029186040,4.573,1766.6,1766.5,1.13212]
[1746029186245,7.554,1766.6,1766.5,1.13212]
[1746029186951,9.2008,1766.6,1766.5,1.13212]
[1746029187251,10.8204,1766.6,1766.5,1.13212]
[1746029187651,7.554,1766.6,1766.5,1.13212]
[1746029188247,1.6468,1767.1,1767.0,1.1318]
[1746029188445,16.97218475,1767.4,1767.3,1.13161]
[1746029188652,17.77868475,1767.4,1767.3,1.13161]
[1746029189242,21.60668475,1767.4,1767.3,1.13161]
[1746029189646,22.73822475,1767.4,1767.2,1.13165]
[1746029189949,1.6888,1767.3,1767.2,1.13165]
[1746029190152,5.5168,1767.3,1767.2,2.80555]
[1746029190451,3.828,1767.3,1767.2,43.60555]
[1746029191056,5.5116,1767.3,1767.2,43.60555]
[1746029191356,6.64321,1767.3,1766.9,6.03746]
[1746029191550,6.64321,1767.3,1767.2,1.13167]
[1746029192154,5.5116,1767.3,1767.2,1.13167]
[1746029194258,6.64321,1767.3,1767.2,1.13167]
[1746029194450,6.64321,1767.3,1767.1,40.8]
[1746029194451,1.13167,1767.2,1767.1,40.8]
[1746029194753,2.81437,1767.2,1767.1,40.8]
[1746029194950,1.6827,1767.2,1766.8,3.70787]
[1746029195155,8.7185,1767.2,1766.8,2.576]
[1746029195356,1.13176,1767.1,1767.0,1.13177]
[1746029195554,2.81446,1767.1,1767.0,1.13177]
[1746029196256,6.64246,1767.1,1767.0,1.13177]
[1746029196655,1.13181,1767.0,1766.9,1.13181]
[1746029196951,1.13186,1766.9,1766.8,43.63338]
[1746029197145,1.13193,1766.8,1766.7,4.33979]
[1746029197344,1.13213,1766.5,1766.3,3.2078]
[1746029197544,5.4426,1766.8,1766.4,40.8]
[1746029197749,1.13203,1766.7,1766.6,1.13203]
[1746029197949,1.7196,1766.7,1766.6,1.13203]
[1746029198152,5.5476,1766.7,1766.6,1.13203]
[1746029198353,3.828,1766.7,1766.6,1.13203]
[1746029198751,3.828,1766.7,1766.6,2.81263]
[1746029199055,4.95999,1766.7,1766.6,2.81263]
[1746029199260,6.67959,1766.7,1766.6,2.81263]
[1746029199461,1.13206,1766.6,1766.5,4.0544]
[1746029199653,1.13206,1766.6,1766.5,3.2078]
[1746029199654,2.85166,1766.6,1766.5,3.2078]
[1746029200158,2.85166,1766.6,1766.5,4.33992]
[1746029200360,6.67966,1766.6,1766.5,4.33992]
[1746029200662,6.67966,1766.6,1766.5,3.2078]
[1746029201454,1.13231,1766.2,1766.1,43.58993]
[1746029201656,2.83048,1766.4,1766.2,1.13229]
[1746029201657,1.13228,1766.3,1766.2,1.13229]
[1746029201856,2.73688,1766.3,1766.2,1.13229]
[1746029202365,5.4326,1766.3,1766.2,1.13229]
[1746029202863,3.828,1766.3,1766.2,5.99769]
[1746029203063,3.828,1766.3,1766.2,10.99769]
[1746029203265,3.723,1766.5,1766.4,1.13218]
[1746029203660,2.78013,1766.7,1766.6,1.13206]
[1746029203860,4.6056,1766.8,1766.7,1.13199]
[1746029204263,5.73753,1766.8,1766.7,1.13199]
[1746029204465,3.724,1766.8,1766.7,1.13199]
[1746029204965,4.85593,1766.8,1766.7,1.13199]
[1746029205164,8.68393,1766.8,1766.7,1.13199]
[1746029205361,7.552,1766.8,1766.7,1.13199]
[1746029205562,3.828,1766.8,1766.7,1.13199]
[1746029205766,3.828,1766.8,1766.7,6.13199]
[1746029206268,3.724,1767.1,1767.0,1.1318]
[1746029206866,4.85574,1767.1,1767.0,1.1318]
[1746029207257,9.2489,1767.1,1766.8,1.13189]
[1746029207457,2.82951,1767.0,1766.7,43.59646]
[1746029207663,1.13193,1766.8,1766.7,42.4645]
[1746029207967,1.13193,1766.8,1766.7,43.59649]
[1746029208167,4.95993,1766.8,1766.7,42.4645]
[1746029208361,4.95993,1766.8,1766.7,1.6645]
[1746029208563,3.828,1766.8,1766.6,1.13205]
[1746029208767,2.82894,1766.7,1766.6,1.13205]
[1746029208961,1.13206,1766.6,1766.5,44.46849]
[1746029209160,6.60306,1766.6,1766.5,44.46849]
[1746029209363,5.471,1766.6,1766.5,44.46849]
[1746029210558,6.60306,1766.6,1766.5,44.46849]
[1746029210760,5.471,1766.6,1766.5,44.46849]
[1746029211161,6.60306,1766.6,1766.5,44.46849]
[1746029211868,5.471,1766.6,1766.5,44.46849]
[1746029212172,6.60306,1766.6,1766.5,44.46849]
[1746029212476,5.471,1766.6,1766.5,44.46849]
[1746029213661,3.828,1766.6,1766.5,44.46849]
[1746029213859,3.828,1766.6,1766.5,49.46849]
[1746029214268,3.723,1766.8,1766.7,1.13199]
[1746029214566,1.13182,1767.0,1766.9,1.13186]
[1746029214765,7.30289,1767.1,1767.0,1.1318]
[1746029214969,1.13185,1767.0,1766.9,1.13183]
[1746029215273,1.13185,1767.0,1766.9,2.85543]
[1746029215464,1.13186,1766.9,1766.8,1.13188]
[1746029216262,4.95986,1766.9,1766.8,1.13188]
[1746029219487,3.828,1766.9,1766.8,1.13188]
[1746029219988,4.95986,1766.9,1766.8,1.13188]
[1746029220188,3.828,1766.9,1766.8,1.13188]
[1746029220585,3.828,1766.9,1766.8,5.16998]
[1746029220990,4.95986,1766.9,1766.8,5.16998]
[1746029222095,3.828,1766.9,1766.8,5.16998]
[1746029224486,4.95986,1766.9,1766.8,5.16998]
[1746029225187,4.95986,1766.9,1766.8,4.0381]
[1746029225491,1.13199,1766.7,1766.6,4.33981]
[1746029225686,1.13206,1766.6,1766.5,2.84381]
[1746029225883,1.7398,1766.6,1766.0,3.2078]
[1746029226190,2.83063,1766.3,1765.9,48.35915421]
[1746029226384,8.27976,1766.2,1766.1,1.13238]
[1746029226584,8.27971,1766.2,1766.1,1.13238]
[1746029226794,1.13238,1766.1,1766.0,2.84409]
[1746029227084,2.87218,1766.1,1766.0,2.84409]
[1746029227293,1.7398,1766.1,1766.0,2.84409]
[1746029227491,2.87218,1766.1,1766.0,2.84409]
[1746029228188,5.5678,1766.1,1766.0,2.84409]
[1746029228586,6.70018,1766.1,1766.0,2.84409]
[1746029228994,5.5678,1766.1,1766.0,2.84409]
[1746029229589,6.70018,1766.1,1766.0,2.84409]
[1746029229791,5.5678,1766.1,1766.0,2.84409]
[1746029230496,6.70018,1766.1,1766.0,2.84409]
[1746029233591,1.13244,1766.0,1765.9,40.8]
[1746029233798,2.72844,1766.0,1765.9,41.93249]
[1746029234091,1.13263,1765.7,1765.6,5.22254]
[1746029234595,1.13278,1765.5,1765.3,4.34063]
[1746029234891,7.26164,1765.6,1765.3,4.8942]
[1746029235093,3.725,1765.6,1765.5,1.13276]
[1746029235397,5.321,1765.9,1765.6,2.83164]
[1746029235589,3.725,1765.9,1765.8,1.13257]
[1746029236191,3.828,1765.9,1765.8,1.13257]
[1746029237192,3.725,1766.2,1766.1,1.13238]
[1746029237490,3.725,1766.2,1766.1,41.93238]
[1746029238189,7.553,1766.2,1766.1,43.62888]
[1746029238587,10.31881,1766.2,1766.1,41.93238]
[1746029238791,1.13238,1766.1,1766.0,1.1324]
[1746029238991,2.76588,1766.1,1766.0,1.1324]
[1746029239193,5.4615,1766.1,1766.0,1.1324]
[1746029239401,5.4615,1766.1,1766.0,41.9324]
[1746029240201,6.59388,1766.1,1766.0,41.9324]
[1746029240394,5.4615,1766.1,1765.8,3.2078]
[1746029240697,4.53089,1766.0,1765.9,1.13251]
[1746029241100,1.13251,1765.9,1765.8,1.13252]
[1746029241297,2.82281,1765.9,1765.8,1.13252]
[1746029241494,1.6903,1765.9,1765.8,1.13252]
[1746029241908,1.6903,1765.9,1765.8,2.80242]
[1746029242295,5.5183,1765.9,1765.8,1.13252]
[1746029242697,9.2443,1765.9,1765.8,1.13252]
[1746029243298,9.2443,1765.9,1765.8,2.73932]
[1746029243492,7.554,1765.9,1765.8,2.73932]
[1746029249100,8.68651,1765.9,1765.8,1.13252]
[1746029249502,1.13282,1765.5,1765.4,1.1328]
[1746029249706,4.85673,1765.6,1765.5,1.13276]
[1746029250002,6.4968,1765.6,1765.5,1.13276]
[1746029250206,9.1921,1765.6,1765.3,3.2078]
[1746029250500,1.13302,1765.1,1764.9,2.4774]
[1746029250695,1.6401,1765.0,1764.9,43.57819]
[1746029251102,5.4681,1765.0,1764.9,43.57819]
[1746029254214,2.1061341,1765.0,1764.9,43.57819]
[1746029257402,4.1e-06,1765.0,1764.9,48.57819]
[1746029258206,4.1e-06,1765.0,1764.9,52.40619]
[1746029258610,3.726,1765.5,1765.4,1.13283]
[1746029259416,3.726,1765.5,1765.4,2.82183]
[1746029261211,5.412,1765.5,1765.4,1.13283]
[1746029261410,6.54476,1765.5,1765.4,1.13283]
[1746029261614,6.2241,1765.5,1765.4,1.13283]
[1746029261811,1.13286,1765.4,1765.3,1.13285]
[1746029262118,1.13291,1765.3,1765.2,1.13291]
[1746029262310,4.34071,1765.3,1765.2,1.13291]
[1746029262507,1.13291,1765.3,1765.0,8.66258]
[1746029262711,6.2127,1765.2,1765.1,1.13302]
[1746029263115,10.0407,1765.2,1765.1,1.13302]
[1746029263823,7.554,1765.2,1765.1,1.13302]
[1746029264008,3.828,1765.2,1765.1,1.97602]
[1746029264212,3.2078,1765.3,1765.2,1.13295]
[1746029264411,3.2078,1765.3,1765.2,3.59675]
[1746029265813,1.6153,1765.4,1765.3,1.13289]
[1746029266019,1.6153,1765.4,1765.3,2.74069]
[1746029266219,4.5381,1765.5,1765.4,1.13283]
[1746029266425,3.726,1765.5,1765.4,2.74063]
[1746029267326,3.726,1765.5,1765.4,1.13283]
[1746029267519,5.4923,1765.5,1765.4,1.13283]
[1746029268123,10.45306,1765.5,1765.4,1.13283]
[1746029268418,9.3203,1765.5,1765.4,1.13283]
[1746029271021,9.7822791,1765.5,1765.4,1.13283]
[1746029273321,10.9150391,1765.5,1765.4,1.13283]
[1746029273821,9.7822791,1765.5,1765.4,1.13283]
[1746029274328,10.9150391,1765.5,1765.4,1.13283]
[1746029274523,9.7822791,1765.5,1765.4,1.13283]
[1746029274920,9.7822791,1765.5,1765.2,3.2078]
[1746029275123,1.13299,1765.2,1765.1,1.13298]
[1746029275425,1.13299,1765.2,1764.8,3.2078]
[1746029275426,1.13308,1765.0,1764.8,7.80789]
[1746029275726,0.4619791,1764.9,1764.8,6.10811]
[1746029275928,2.1388791,1764.9,1764.8,46.90811]
[1746029276232,5.9668791,1764.9,1764.8,46.90811]
[1746029277521,7.1000291,1764.9,1764.8,46.90811]
[1746029277726,7.1000291,1764.9,1764.8,4.34101]
[1746029277926,10.8260291,1764.9,1764.8,3.2078]
[1746029278126,10.8260791,1764.9,1764.8,1.13321]
[1746029279024,9.6928791,1764.9,1764.8,1.13321]
[1746029280531,10.8260291,1764.9,1764.8,1.13321]
[1746029280729,9.6928791,1764.9,1764.8,1.13321]
[1746029281027,10.8260291,1764.9,1764.8,2.85491]
[1746029281231,10.8260291,1764.9,1764.8,1.13321]
[1746029281429,10.8260691,1764.9,1764.8,1.13321]
[1746029281628,1.13334,1764.6,1764.4,4.0442]
[1746029281832,1.1334,1764.5,1764.4,4.34123]
[1746029282027,5.0083791,1764.5,1764.4,3.2078]
[1746029282336,5.0083791,1764.5,1764.4,4.34127]
[1746029283125,8.8363791,1764.5,1764.4,4.34127]
[1746029283326,1.1336,1764.3,1764.2,1.1336]
[1746029283534,1.1336,1764.2,1764.1,1.13363]
[1746029283737,1.6619,1764.2,1763.9,2.01523]
[1746029283932,1.13373,1764.0,1763.9,1.13373]
[1746029284126,5.4237091,1764.0,1763.8,5.1955]
[1746029284330,5.4237091,1764.0,1763.8,45.9955]
[1746029284331,1.6619,1763.9,1763.8,45.9955]
[1746029284534,2.1238791,1763.9,1763.8,45.9955]
[1746029284734,0.4619791,1763.9,1763.8,45.9955]
[1746029286835,0.4619791,1763.9,1763.8,5.1955]
[1746029287439,2.1615791,1763.9,1763.8,4.3416]
[1746029287838,3.0185791,1763.9,1763.8,4.3416]
[1746029288628,4.1523691,1763.9,1763.8,3.2078]
[1746029288833,1.13385,1763.8,1763.7,40.8]
[1746029289033,2.75365,1763.8,1763.7,40.8]
[1746029289533,3.2156291,1763.8,1763.7,40.8]
[1746029289937,3.2156291,1763.8,1763.7,41.93392]
[1746029290133,5.9097791,1763.8,1763.7,41.93392]
[1746029290338,5.9097791,1763.8,1763.7,43.61222]
[1746029291135,3.2156291,1763.8,1763.7,42.4783]
[1746029291737,3.2156291,1763.8,1763.7,43.61222]
[1746029292344,3.2156291,1763.8,1763.7,42.4783]
[1746029292744,3.2156291,1763.8,1763.7,43.61222]
[1746029294144,3.2156291,1763.8,1763.7,41.93392]
[1746029294938,3.2156291,1763.8,1763.7,43.54652]
[1746029295438,3.2156291,1763.8,1763.7,2.74652]
[1746029297246,3.2156291,1763.8,1763.7,1.6126]
[1746029297451,3.2156291,1763.8,1763.7,2.74652]
[1746029297641,3.2156291,1763.8,1763.7,1.6126]
[1746029297847,1.13411,1763.5,1763.3,3.2078]
[1746029298045,1.13411,1763.5,1763.4,2.82527]
[1746029298547,1.6725,1763.6,1763.5,1.13405]
[1746029298744,3.728,1763.7,1763.6,1.13398]
[1746029298745,4.86193,1763.7,1763.6,1.13398]
[1746029298947,4.86193,1763.7,1763.6,2.82518]
[1746029299152,9.14951,1763.7,1763.6,2.82518]
[1746029299548,10.85039,1763.7,1763.3,6.87554]
[1746029299748,1.13408,1763.5,1763.4,2.82526]
[1746029300055,1.59366,1763.5,1763.4,2.82526]
[1746029300953,1.59366,1763.5,1763.4,1.6912]
[1746029301253,1.13424,1763.2,1763.1,1.7436]
[1746029301457,2.83578,1763.1,1762.8,43.63383]
[1746029301661,1.13442,1763.0,1762.9,1.13443]
[1746029301857,1.6102,1763.0,1762.9,2.87803]
[1746029302153,0.8061,1763.1,1763.0,1.13437]
[1746029302356,1.9404,1763.1,1763.0,1.7436]
[1746029302554,4.01024444,1763.1,1763.0,1.7436]
[1746029302956,4.01024444,1763.1,1763.0,2.87797]
[1746029303160,7.83824444,1763.1,1763.0,1.7436]
[1746029303657,1.13443,1762.9,1762.8,43.63385]
[1746029303955,6.22809444,1763.1,1763.0,1.13437]
[1746029304350,7.84859444,1763.1,1763.0,1.13437]
[1746029304956,1.13437,1763.0,1762.9,2.89249]
[1746029305358,1.13437,1763.0,1762.9,1.7581]
[1746029305563,2.75487,1763.0,1762.9,1.7581]
[1746029306053,3.21451444,1763.0,1762.9,2.89253]
[1746029306660,3.21451444,1763.0,1762.9,1.7581]
[1746029307265,1.13443,1762.9,1762.8,42.4994]
[1746029307457,6.62403,1762.9,1762.8,41.9345]
[1746029307762,7.08367444,1762.9,1762.8,2.8901]
[1746029307963,7.08367444,1762.9,1762.8,1.1345]
[1746029308359,7.08367444,1762.9,1762.8,2.8901]
[1746029308663,4.18964444,1762.9,1762.8,2.8901]
[1746029309059,5.32407444,1762.9,1762.8,2.8901]
[1746029309557,4.18964444,1762.9,1762.8,2.8901]
[1746029310166,5.32407444,1762.9,1762.8,1.7556]
[1746029310663,6.93287444,1762.9,1762.8,1.7556]
[1746029310864,6.93287444,1762.9,1762.8,2.8901]
[1746029311452,6.93287444,1762.9,1762.8,1.7556]
[1746029311656,8.63457444,1762.9,1762.6,1.6486]
[1746029311857,1.13454,1762.8,1762.7,1.6955]
[1746029312166,2.83641,1762.7,1762.0,3.2078]
[1746029312466,1.13495,1762.1,1762.0,3.643]
[1746029312660,1.13495,1762.1,1762.0,2.508]
[1746029312863,1.13495,1762.1,1761.8,3.2078]
[1746029312864,5.45964444,1762.1,1761.8,3.2078]
[1746029313068,5.45964444,1762.1,1761.4,2.7699]
[1746029313069,1.13531,1761.6,1761.4,2.7699]
[1746029313260,1.13543,1761.4,1761.2,14.52463421]
[1746029313468,1.13546,1761.3,1761.2,9.19365421]
[1746029313765,0.45964444,1761.3,1761.2,10.32918421]
[1746029313961,2.16624444,1761.3,1761.2,7.55915421]
[1746029314364,2.16624444,1761.3,1761.2,10.32918421]
[1746029314566,2.16624444,1761.3,1761.2,9.19365421]
[1746029314860,0.45964444,1761.3,1761.2,10.32918421]
[1746029315264,0.45964444,1761.3,1761.2,11.15838421]
[1746029315868,0.45964444,1761.3,1761.2,16.15838421]
[1746029316070,0.45964444,1761.3,1761.2,19.36618421]
[1746029316269,5.3764,1761.9,1761.8,1.13514]
[1746029316469,8.5842,1761.9,1761.4,1.13539]
[1746029316663,1.13527,1761.6,1761.5,1.7106]
[1746029316861,3.73,1761.6,1761.5,2.84593]
[1746029317671,3.731,1761.7,1761.6,1.13527]
[1746029317964,6.9388,1761.7,1761.4,1.13539]
[1746029318171,1.13529,1761.6,1761.4,2.84599]
[1746029318471,11.90205,1761.7,1761.5,1.13533]
[1746029318663,10.7668,1761.7,1761.6,1.7106]
[1746029318970,11.90201,1761.7,1761.6,1.7106]
[1746029319172,1.1353,1761.6,1761.4,2.87378]
[1746029319475,1.13533,1761.5,1761.4,1.7384]
[1746029319769,1.6698,1761.6,1761.4,2.87378]
[1746029319967,6.9388,1761.7,1761.6,1.13527]
[1746029320164,3.731,1761.7,1761.6,1.13527]
[1746029320363,4.86625,1761.7,1761.4,1.7384]
[1746029320561,6.53602,1761.7,1761.5,1.1353]
[1746029320766,6.53601,1761.7,1761.6,1.7384]
[1746029321870,5.4008,1761.7,1761.3,44.8704]
[1746029322168,5.4008,1761.7,1761.4,2.86357]
[1746029322370,1.13533,1761.5,1761.4,1.7282]
[1746029323465,6.2437,1761.7,1761.4,2.86357]
[1746029323660,1.13533,1761.5,1761.4,1.7282]
[1746029324565,2.90943,1761.5,1761.4,1.7282]
[1746029325164,6.73743,1761.5,1761.4,1.7282]
[1746029325469,3.828,1761.5,1761.4,2.8636]
[1746029325870,4.96333,1761.5,1761.4,1.7282]
[1746029326373,1.13546,1761.4,1761.2,40.8]
[1746029326564,4.86746,1761.4,1761.3,1.6103]
[1746029326971,4.86746,1761.4,1761.3,2.74576]
[1746029327272,3.732,1761.4,1761.3,2.74576]
[1746029327666,3.732,1761.4,1761.3,5.95356]
[1746029328170,3.72568575,1761.4,1761.3,5.95356]
[1746029328965,4.17961834,1761.4,1761.3,5.95356]
[1746029330168,4.17961834,1761.4,1761.3,10.95356]
[1746029330668,0.45393259,1761.4,1761.3,10.95356]
[1746029331374,0.45393259,1761.4,1761.3,14.78156]
[1746029332972,0.45393259,1761.4,1761.3,9.78156]
[1746029334271,0.45393259,1761.4,1761.3,5.95356]
[1746029334272,1.58933259,1761.4,1761.3,5.95356]
[1746029334775,1.58933259,1761.4,1761.3,2.74576]
[1746029335079,0.45393259,1761.4,1761.3,2.74576]
[1746029335272,1.58933259,1761.4,1761.3,2.74576]
[1746029335578,0.45393259,1761.4,1761.3,2.74576]
[1746029336178,0.45393259,1761.4,1761.3,5.95356]
[1746029338667,2.59e-06,1761.4,1761.3,10.95356]
[1746029338870,0.8374,1761.9,1761.3,15.6481]
[1746029339075,3.732,1762.2,1762.1,1.13495]
[1746029339076,5.72434,1762.2,1762.1,1.13495]
[1746029339380,7.38654,1762.2,1762.1,1.13495]
[1746029339682,1.13495,1762.1,1762.0,2.84126]
[1746029339883,2.79715,1762.1,1762.0,2.84126]
[1746029340177,12.70751,1762.1,1761.6,3.2078]
[1746029340480,1.1353,1761.6,1761.5,1.13529]
[1746029340680,3.746,1761.6,1761.5,1.13529]
[1746029341282,5.67669,1761.5,1760.7,5.83]
[1746029341476,6.04671,1761.2,1760.7,1.7288]
[1746029341675,1.13579,1760.8,1760.7,1.7288]
[1746029341876,1.13568,1761.0,1760.8,1.13579]
[1746029342075,2.86898,1761.0,1760.8,1.13579]
[1746029342285,1.7333,1761.0,1760.9,41.93572]
[1746029342778,3.746,1761.1,1761.0,1.13566]
[1746029343080,4.88159,1761.1,1761.0,1.7288]
[1746029343376,4.88159,1761.1,1760.9,41.93567]
[1746029343377,1.13566,1761.0,1760.9,40.8]
[1746029343578,2.79196,1761.0,1760.9,40.8]
[1746029343783,3.61556,1761.0,1760.9,40.8]
[1746029344682,1.13572,1760.9,1760.8,1.6379]
[1746029344872,2.79202,1760.9,1760.8,1.6379]
[1746029345071,2.79202,1760.9,1760.8,2.77369]
[1746029345286,1.6563,1760.9,1760.8,43.57369]
[1746029345682,2.79202,1760.9,1760.8,43.57369]
[1746029345876,2.79202,1760.9,1760.8,42.4379]
[1746029346090,2.79202,1760.9,1760.8,40.8]
[1746029346883,2.79202,1760.9,1760.8,1.13579]
[1746029347975,2.79202,1760.9,1760.7,45.733]
[1746029348479,2.79202,1760.9,1760.8,1.13579]
[1746029348980,1.6563,1760.9,1760.8,1.13579]
[1746029349185,3.2078,1761.6,1760.8,2.83947]
[1746029349481,1.7648,1761.3,1761.2,1.13548]
[1746029349675,1.1354,1761.4,1761.3,1.13546]
[1746029349873,6.64716,1761.5,1761.1,5.31127]
[1746029350080,5.5118,1761.5,1761.2,1.6543]
[1746029350376,1.13546,1761.3,1761.2,2.78977]
[1746029350577,8.35015,1761.5,1760.8,4.0243]
[1746029350780,1.13563,1761.1,1761.0,1.13564]
[1746029350974,4.88263,1761.1,1761.0,1.13564]
[1746029351182,2.83916,1761.0,1760.6,4.0258]
[1746029351485,1.1358,1760.8,1760.7,0.51581]
[1746029351782,6.9548,1760.8,1760.2,5.83]
[1746029351981,6.9548,1760.8,1760.0,2.84075]
[1746029351982,3.2078,1760.5,1760.0,2.84075]
[1746029352190,3.747,1760.4,1760.3,1.13607]
[1746029352483,7.30745,1760.7,1760.6,1.13591]
[1746029352688,9.3794,1760.7,1760.6,1.13591]
[1746029352877,10.51525,1760.7,1760.6,1.13591]
[1746029353283,1.13594,1760.6,1760.5,1.13596]
[1746029353593,10.5153,1760.7,1760.6,1.13591]
[1746029353788,6.9548,1760.7,1760.6,1.13591]
[1746029353985,6.5009,1761.0,1760.9,1.13572]
[1746029354385,3.2078,1761.2,1761.1,1.13559]
[1746029354682,3.2078,1761.2,1760.9,1.13568]
[1746029354881,2.75284,1761.1,1761.0,1.13566]
[1746029355082,1.6172,1761.1,1760.6,8.66977]
[1746029355286,4.34348,1761.0,1760.9,1.13569]
[1746029355583,6.50079,1761.1,1761.0,1.13566]
[1746029355985,3.748,1761.1,1761.0,1.13566]
[1746029356486,5.3813,1761.1,1761.0,1.13566]
[1746029356689,3.748,1761.1,1761.0,1.13566]
[1746029357192,3.2078,1761.2,1761.1,1.13559]
[1746029357393,1.13517,1761.8,1761.7,1.13521]
[1746029357580,8.09092,1761.9,1761.5,2.83833]
[1746029357785,1.13518,1761.8,1761.7,1.13519]
[1746029357985,1.6333,1761.8,1761.7,1.13519]
[1746029358189,1.13521,1761.7,1761.6,41.93524]
[1746029358394,1.13521,1761.7,1761.6,40.8]
[1746029358594,2.76848,1761.8,1761.7,1.13521]
[1746029358894,1.6333,1761.8,1761.6,41.93524]
[1746029359082,5.4613,1761.8,1761.6,41.93524]
[1746029359285,6.59647,1761.8,1761.7,1.13521]
[1746029359497,6.59647,1761.8,1761.6,40.8]
[1746029359787,3.2078,1761.7,1761.6,40.8]
[1746029359996,6.02471,1761.7,1761.6,40.8]
[1746029360187,8.7175,1761.7,1761.6,41.93527]
[1746029360591,7.0358,1761.7,1761.6,41.93527]
[1746029361290,3.2078,1761.7,1761.6,41.93527]
[1746029361802,6.9558,1761.9,1761.8,1.13514]
[1746029362088,3.748,1761.9,1761.8,1.13514]
[1746029363094,3.748,1761.9,1761.7,1.99016]
[1746029363291,5.3495,1761.9,1761.8,1.13514]
[1746029363487,6.48462,1761.9,1761.8,1.13514]
[1746029364487,5.3495,1761.9,1761.7,0.855]
[1746029364692,1.13521,1761.7,1761.6,41.93523]
[1746029364998,1.13521,1761.7,1761.6,40.8]
[1746029365299,6.65561,1761.7,1761.6,40.8]
[1746029365996,3.828,1761.7,1761.6,41.93527]
[1746029366499,4.96321,1761.7,1761.6,41.93527]
[1746029366698,3.828,1761.7,1761.6,41.93527]
[1746029367198,4.34298,1761.8,1761.7,1.13521]
[1746029367386,6.03538,1761.8,1761.7,1.13521]
[1746029367898,1.13521,1761.7,1761.6,41.93523]
[1746029368296,1.1354,1761.4,1761.3,1.95832]
[1746029368492,1.13538,1761.5,1761.4,1.13536]
[1746029368693,2.74078,1761.5,1761.4,41.93536]
[1746029369103,1.6054,1761.5,1761.4,41.93536]
[1746029369401,3.747,1761.6,1761.5,1.13533]
[1746029369702,4.88227,1761.6,1761.5,1.13533]
[1746029370099,1.13533,1761.5,1761.4,2.01408]
[1746029370297,1.1354,1761.4,1761.3,1.95831]
[1746029370903,2.74079,1761.5,1761.4,1.1354]
[1746029371394,2.74079,1761.5,1761.4,2.8094]
[1746029372508,6.9548,1761.6,1761.5,1.13533]
[1746029372709,6.9548,1761.6,1761.5,2.80933]
[1746029373004,8.09007,1761.6,1761.5,2.80933]
[1746029373602,1.13552,1761.3,1761.1,6.7087]
[1746029373805,1.13552,1761.3,1761.2,2.873]
[1746029374009,1.13545,1761.4,1761.3,1.13542]
[1746029374301,6.9548,1761.6,1761.5,1.13533]
[1746029374502,3.2078,1761.6,1761.5,1.13533]
[1746029375006,3.2078,1761.6,1761.5,2.87283]
[1746029376295,4.34307,1761.6,1761.5,2.87283]
[1746029376499,3.2078,1761.6,1761.5,2.87283]
[1746029376702,4.34307,1761.6,1761.5,2.87283]
[1746029377002,3.2078,1761.6,1761.5,2.87283]
[1746029377907,4.34307,1761.6,1761.5,2.87283]
[1746029379306,3.2078,1761.6,1761.5,2.87283]
[1746029379907,3.2078,1761.6,1761.5,3.71143]
[1746029383616,6.02347,1761.6,1761.5,3.71143]
[1746029383814,6.02347,1761.6,1761.5,1.13533]
[1746029384218,1.13533,1761.5,1761.4,2.82114]
[1746029384418,1.6804,1761.5,1761.4,2.82114]
[1746029384819,2.81573,1761.5,1761.4,2.82114]
[1746029385020,1.6804,1761.5,1761.4,2.82114]
[1746029385820,2.81573,1761.5,1761.4,2.82114]
[1746029387821,1.6804,1761.5,1761.4,2.82114]
[1746029388726,2.81573,1761.5,1761.4,2.82114]
[1746029389318,1.6804,1761.5,1761.4,2.82114]
[1746029389624,4.8882,1761.5,1761.4,2.82114]
[1746029390226,6.02353,1761.5,1761.4,1.13534]
[1746029391123,4.8882,1761.5,1761.4,1.13534]
[1746029391322,6.02353,1761.5,1761.4,1.13534]
[1746029391622,4.8882,1761.5,1761.4,1.13534]
[1746029392420,6.02353,1761.5,1761.4,1.13534]
[1746029392928,8.6812,1761.5,1761.2,1.13549]
[1746029393132,3.2078,1761.3,1761.2,1.13549]